[Event "1st Sivas Buruciye Open 2019"]
[Site "Sivas"]
[Date "2019.08.20"]
[Round "2"]
[White "Deveci, Halit"]
[Black "Basaran, Cahit"]
[Result "1/2-1/2"]
[ECO "C30"]
[WhiteElo "1637"]
[BlackElo "1834"]
[Annotator "NA RC"]
[PlyCount "146"]
[EventDate "2019.08.19"]
[EventType "swiss"]
[EventCountry "TUR"]
[SourceTitle "playchess.com"]
[Source "ChessBase"]
[SourceQuality "1"]
[TimeControl "5400+30"]

1. e4 {[%emt 0:00:30]} e5 {[%emt 0:00:30]} 2. f4 {[%emt 0:00:30]} d6 {[%emt 0:00:30]} 3. Nf3 {[%emt 0:00:30]} Nc6 {[%emt 0:00:00]} 4. Bc4 {[%emt 0:00:00]} Be7 {[%emt 0:02:00]} 5. O-O {[%emt 0:00:00]} Nf6 {[%emt 0:00:30]} 6. d3 {[%emt 0:10:30]} O-O {[%emt 0:01:30]} 7. h3 {[%emt 0:02:30]} a6 {[%emt 0:01:30]} 8. a4 {[%emt 0:02:30]} Bd7 {[%emt 0:02:30]} 9. Nc3 {[%emt 0:04:30]} exf4 {[%emt 0:07:30]} 10. Bxf4 {[%emt 0:04:30]} Be6 {[%emt 0:02:30]} 11. Nd5 {[%emt 0:14:30]} Bxd5 {[%emt 0:03:30]} 12. exd5 {[%emt 0:00:30]} Nb8 {[%emt 0:00:30]} 13. Nd4 {[%emt 0:01:30]} c6 {[%emt 0:07:30]} 14. dxc6 {[%emt 0:10:30]} bxc6 {[%emt 0:00:30]} 15. Nf5 {[%emt 0:01:30]} d5 {[%emt 0:00:30]} 16. Bb3 {[%emt 0:01:30]} Re8 {[%emt 0:06:30]} 17. Qf3 {[%emt 0:04:30]} Bf8 {[%emt 0:02:30]} 18. g4 {[%emt 0:05:30]} h6 {[%emt 0:13:30]} 19. h4 {[%emt 0:00:00]} Nh7 {[%emt 0:03:30]} 20. Be3 {[%emt 0:13:00]} Nd7 {[%emt 0:05:30]} 21. Bd4 {[%emt 0:09:07]} Ne5 {[%emt 0:05:30]} 22. Qf4 {[%emt 0:02:17]} f6 {[%emt 0:02:30]} 23. Rae1 {[%emt 0:02:24]} Qc7 {[%emt 0:05:30]} 24. Kg2 {[%emt 0:00:22]} Bd6 {[%emt 0:02:30]} 25. Nxd6 {[%emt 0:01:11]} Qxd6 {[%emt 0:00:30]} 26. Re2 {[%emt 0:04:30]} Nf8 {[%emt 0:02:30]} 27. Qg3 {[%emt 0:02:43]} Re6 {[%emt 0:02:49]} 28. g5 {[%emt 0:00:32]} hxg5 {[%emt 0:02:02]} 29. hxg5 {[%emt 0:00:06]} Nfd7 {[%emt 0:01:37]} 30. gxf6 {[%emt 0:00:52]} Rxf6 {[%emt 0:05:14]} 31. Rxf6 {[%emt 0:00:03]} Qxf6 {[%emt 0:00:32]} 32. Bxe5 {[%emt 0:00:11]} Nxe5 {[%emt 0:00:00]} 33. Qxe5 {[%emt 0:01:02]} Qg6+ {[%emt 0:00:14]} 34. Kf1 {[%emt 0:00:57]} Rf8+ {[%emt 0:00:22]} 35. Rf2 {[%emt 0:00:49]} Rxf2+ {[%emt 0:03:57]} 36. Kxf2 {[%emt 0:00:06]} Qh6 {[%emt 0:00:03]} 37. Qe3 {[%emt 0:00:53]} Qh2+ {[%emt 0:00:14]} 38. Ke1 {[%emt 0:00:33]} Qh4+ {[%emt 0:00:18]} 39. Kd1 {[%emt 0:00:00]} Qh1+ {[%emt 0:00:00]} 40. Kd2 {[%emt 0:00:00]} Qh2+ {[%emt 0:01:03]} 41. Kc3 {[%emt 0:00:08]} Qd6 {[%emt 0:00:29]} 42. d4 {[%emt 0:01:52]} a5 {[%emt 0:00:31]} 43. Qe5 {[%emt 0:00:31]} Qh6 {[%emt 0:00:41]} 44. Bxd5+ {[%emt 0:00:49]} cxd5 {[%emt 0:00:20]} 45. Qxd5+ {[%emt 0:00:33]} Kh7 {[%emt 0:00:30]} 46. Qxa5 {[%emt 0:00:30]} Qe3+ {[%emt 0:00:30]} 47. Kc4 {[%emt 0:00:30]} g5 {[%emt 0:00:30]} 48. Qf5+ {[%emt 0:00:30]} Kh6 {[%emt 0:00:30]} 49. a5 {[%emt 0:00:30]} Kh5 {[%emt 0:00:02]} 50. a6 {[%emt 0:00:15]} Qe2+ {[%emt 0:00:40]} 51. Qd3 {[%emt 0:00:08]} Qe6+ {[%emt 0:00:10]} 52. Kb4 {[%emt 0:00:13]} Qb6+ {[%emt 0:00:00]} 53. Ka3 {[%emt 0:01:10]} Qa5+ {[%emt 0:00:01]} 54. Kb3 {[%emt 0:00:06]} Qb6+ {[%emt 0:00:11]} 55. Ka4 {[%emt 0:00:13]} Qc6+ {[%emt 0:00:03]} 56. Ka3 {[%emt 0:00:28]} g4 {[%emt 0:02:05]} 57. b4 {[%emt 0:00:01]} Qb6 {[%emt 0:00:35]} 58. Qh7+ {[%emt 0:00:55]} Kg5 {[%emt 0:00:02]} 59. Qb7 {[%emt 0:01:42]} Qxd4 {[%emt 0:00:17]} 60. a7 {[%emt 0:00:21]} Qc3+ {[%emt 0:01:51]} 61. Ka4 {[%emt 0:00:15]} Qxc2+ {[%emt 0:00:00]} 62. Ka5 {[%emt 0:00:48]} Qa2+ {[%emt 0:00:05]} 63. Kb6 {[%emt 0:00:17]} Qf2+ {[%emt 0:00:16]} 64. Kc7 {[%emt 0:00:47]} Qf4+ {[%emt 0:00:18]} 65. Kc8 {[%emt 0:00:56]} Qf8+ {[%emt 0:00:42]} 66. Kd7 {[%emt 0:00:00]} Qf7+ {[%emt 0:00:00]} 67. Kc6 {[%emt 0:00:00]} Qf3+ {[%emt 0:00:59]} 68. Kb6 {[%emt 0:00:03]} Qe3+ {[%emt 0:00:10]} 69. Ka5 {[%emt 0:00:25]} Qa3+ {[%emt 0:00:43]} 70. Kb5 {[%emt 0:00:30]} Qd3+ {[%emt 0:00:00]} 71. Ka4 {[%emt 0:00:36]} Qc2+ {[%emt 0:00:13]} 72. Ka5 {[%emt 0:00:47]} Qa2+ {[%emt 0:00:15]} 73. Kb6 {[%emt 0:00:26]} Qf2+ {[%emt 0:00:10]} 1/2-1/2

[Event "1st Sivas Buruciye Open 2019"]
[Site "Sivas"]
[Date "2019.08.20"]
[Round "2"]
[White "Aslan, Muhammed Sadik"]
[Black "Kiziltas, Inanc Vefa"]
[Result "0-1"]
[ECO "B13"]
[WhiteElo "1543"]
[BlackElo "1826"]
[Annotator "NA RC"]
[PlyCount "65"]
[EventDate "2019.08.19"]
[EventType "swiss"]
[EventCountry "TUR"]
[SourceTitle "playchess.com"]
[Source "ChessBase"]
[SourceQuality "1"]
[TimeControl "5400+30"]

1. e4 {[%emt 0:04:30]} c6 {[%emt 0:00:30]} 2. d4 {[%emt 0:00:30]} d5 {[%emt 0:00:30]} 3. exd5 {[%emt 0:00:30]} cxd5 {[%emt 0:00:00]} 4. Nf3 {[%emt 0:00:30]} Bf5 {[%emt 0:00:00]} 5. Bd3 {[%emt 0:00:30]} Bg6 {[%emt 0:00:00]} 6. Bf4 {[%emt 0:03:30]} Nc6 {[%emt 0:02:00]} 7. c3 {[%emt 0:04:30]} e6 {[%emt 0:02:30]} 8. O-O {[%emt 0:06:30]} Bd6 {[%emt 0:01:30]} 9. Bg3 {[%emt 0:01:30]} Nf6 {[%emt 0:00:30]} 10. Qe2 {[%emt 0:03:30]} Bxg3 {[%emt 0:04:30]} 11. fxg3 {[%emt 0:02:30]} Bxd3 {[%emt 0:01:30]} 12. Qxd3 {[%emt 0:00:30]} Ne4 {[%emt 0:00:30]} 13. Nbd2 {[%emt 0:01:30]} f5 {[%emt 0:00:30]} 14. b4 {[%emt 0:24:30]} a6 {[%emt 0:06:30]} 15. a4 {[%emt 0:02:30]} O-O {[%emt 0:00:30]} 16. Rab1 {[%emt 0:09:30]} Rc8 {[%emt 0:03:30]} 17. Rfc1 {[%emt 0:07:30]} Qe7 {[%emt 0:18:30]} 18. Nb3 {[%emt 0:03:30]} g5 {[%emt 0:04:30]} 19. Nfd2 {[%emt 0:06:17]} h5 {[%emt 0:04:30]} 20. Nc5 {[%emt 0:04:24]} e5 {[%emt 0:02:30]} 21. Ndxe4 {[%emt 0:02:24]} fxe4 {[%emt 0:01:30]} 22. Qe2 {[%emt 0:01:11]} exd4 {[%emt 0:01:30]} 23. Qxh5 {[%emt 0:01:56]} d3 {[%emt 0:08:30]} 24. Qg6+ {[%emt 0:00:26]} Kh8 {[%emt 0:01:30]} 25. Qh6+ {[%emt 0:00:46]} Qh7 {[%emt 0:00:30]} 26. Qxg5 {[%emt 0:01:19]} Rf5 {[%emt 0:00:30]} 27. Qe3 {[%emt 0:00:40]} Ne5 {[%emt 0:00:30]} 28. h3 {[%emt 0:01:30]} Nc4 {[%emt 0:03:30]} 29. Qd4+ {[%emt 0:01:16]} Qg7 {[%emt 0:01:30]} 30. Qxg7+ {[%emt 0:01:37]} Kxg7 {[%emt 0:00:30]} 31. Ne6+ {[%emt 0:00:30]} Kh6 {[%emt 0:00:30]} 32. Rf1 {[%emt 0:00:30]} Rxf1+ {[%emt 0:00:30]} 33. Rxf1 {[%emt 0:01:52]} 0-1

[Event "1st Sivas Buruciye Open 2019"]
[Site "Sivas"]
[Date "2019.08.20"]
[Round "2"]
[White "Ates, Bilge Kaan"]
[Black "Yuksel, Davut Can"]
[Result "1/2-1/2"]
[ECO "B97"]
[WhiteElo "1434"]
[BlackElo "1799"]
[Annotator "NA RC"]
[PlyCount "102"]
[EventDate "2019.08.19"]
[EventType "swiss"]
[EventCountry "TUR"]
[SourceTitle "playchess.com"]
[Source "ChessBase"]
[SourceQuality "1"]
[TimeControl "5400+30"]

1. e4 {[%emt 0:00:30]} c5 {[%emt 0:00:30]} 2. Nf3 {[%emt 0:00:00]} d6 {[%emt 0:00:30]} 3. d4 {[%emt 0:00:00]} cxd4 {[%emt 0:00:00]} 4. Nxd4 {[%emt 0:00:30]} Nf6 {[%emt 0:00:00]} 5. Nc3 {[%emt 0:00:00]} a6 {[%emt 0:00:30]} 6. Bg5 {[%emt 0:00:00]} e6 {[%emt 0:00:30]} 7. f4 {[%emt 0:00:30]} Qb6 {[%emt 0:00:30]} 8. Qd2 {[%emt 0:01:30]} Be7 {[%emt 0:05:30]} 9. O-O-O {[%emt 0:03:30]} Nbd7 {[%emt 0:01:30]} 10. Bc4 {[%emt 0:18:30]} O-O {[%emt 0:04:30]} 11. Rhe1 {[%emt 0:08:30]} h6 {[%emt 0:04:30]} 12. e5 {[%emt 0:06:30]} dxe5 {[%emt 0:03:30]} 13. fxe5 hxg5 14. exf6 {[%emt 0:09:00]} Nxf6 {[%emt 0:05:00]} 15. Qxg5 {[%emt 0:06:30]} Qc5 {[%emt 0:06:30]} 16. Qxc5 {[%emt 0:08:30]} Bxc5 {[%emt 0:00:30]} 17. Nb3 {[%emt 0:01:30]} Bb4 {[%emt 0:02:30]} 18. Be2 {[%emt 0:04:30]} Bxc3 {[%emt 0:07:30]} 19. bxc3 {[%emt 0:00:00]} Nd5 {[%emt 0:00:30]} 20. Bf3 {[%emt 0:07:00]} Nxc3 {[%emt 0:02:30]} 21. Rd4 {[%emt 0:00:00]} Nb5 {[%emt 0:05:30]} 22. Rd3 {[%emt 0:00:00]} Rb8 {[%emt 0:06:30]} 23. Red1 {[%emt 0:04:30]} e5 {[%emt 0:06:30]} 24. a4 {[%emt 0:00:55]} Nc7 {[%emt 0:01:30]} 25. Nc5 {[%emt 0:01:42]} b6 {[%emt 0:02:30]} 26. Nd7 {[%emt 0:08:06]} Bxd7 {[%emt 0:00:30]} 27. Rxd7 {[%emt 0:00:06]} Ne6 {[%emt 0:00:00]} 28. Ra7 {[%emt 0:03:18]} Nc5 {[%emt 0:01:00]} 29. Rd6 {[%emt 0:02:03]} Rfd8 {[%emt 0:04:30]} 30. Rc6 {[%emt 0:00:16]} Rdc8 {[%emt 0:02:30]} 31. Rd6 {[%emt 0:04:27]} b5 {[%emt 0:00:30]} 32. Bd5 {[%emt 0:01:03]} bxa4 {[%emt 0:04:30]} 33. Rxf7 {[%emt 0:01:00]} Kh7 {[%emt 0:01:30]} 34. Rf3 {[%emt 0:00:53]} g6 {[%emt 0:04:37]} 35. Rf7+ {[%emt 0:00:07]} Kh6 {[%emt 0:00:29]} 36. Rff6 {[%emt 0:00:14]} Nd3+ {[%emt 0:00:15]} 37. Kd2 {[%emt 0:00:32]} Nf4 {[%emt 0:00:22]} 38. Be4 {[%emt 0:01:23]} Rd8 {[%emt 0:01:29]} 39. g3 {[%emt 0:00:44]} Rxd6+ {[%emt 0:02:34]} 40. Rxd6 {[%emt 0:00:06]} Rb4 {[%emt 0:01:36]} 41. gxf4 {[%emt 0:01:04]} Rxe4 {[%emt 0:00:09]} 42. fxe5 {[%emt 0:00:15]} Rxe5 {[%emt 0:01:06]} 43. Rxa6 {[%emt 0:00:01]} Re4 {[%emt 0:01:42]} 44. Kd3 {[%emt 0:00:10]} Rh4 {[%emt 0:01:27]} 45. c4 {[%emt 0:00:14]} a3 {[%emt 0:01:00]} 46. c5 {[%emt 0:00:49]} Rxh2 {[%emt 0:07:19]} 47. c6 {[%emt 0:00:08]} Rh1 {[%emt 0:01:23]} 48. Kc2 {[%emt 0:01:05]} Rh2+ {[%emt 0:00:34]} 49. Kb3 {[%emt 0:00:49]} Rh1 {[%emt 0:00:41]} 50. Kc4 {[%emt 0:01:06]} Rc1+ {[%emt 0:00:40]} 51. Kd5 {[%emt 0:00:34]} Rd1+ {[%emt 0:01:42]} 1/2-1/2

[Event "1st Sivas Buruciye Open 2019"]
[Site "Sivas"]
[Date "2019.08.20"]
[Round "2"]
[White "Capraz, Arda"]
[Black "Yucekaya, Ahmetcan"]
[Result "1-0"]
[ECO "C01"]
[WhiteElo "1384"]
[BlackElo "1098"]
[Annotator "NA RC"]
[PlyCount "149"]
[EventDate "2019.08.19"]
[EventType "swiss"]
[EventCountry "TUR"]
[SourceTitle "playchess.com"]
[Source "ChessBase"]
[SourceQuality "1"]
[TimeControl "5400+30"]

1. e4 {[%emt 0:00:30]} e5 {[%emt 0:00:30]} 2. Nf3 {[%emt 0:00:00]} Nf6 {[%emt 0:00:00]} 3. Nxe5 {[%emt 0:01:00]} d6 {[%emt 0:00:00]} 4. Nf3 {[%emt 0:00:30]} Nxe4 {[%emt 0:00:00]} 5. d3 {[%emt 0:02:30]} Nf6 {[%emt 0:00:00]} 6. d4 {[%emt 0:08:30]} d5 {[%emt 0:01:30]} 7. Bd3 {[%emt 0:03:30]} Be6 {[%emt 0:01:30]} 8. O-O {[%emt 0:06:30]} Be7 {[%emt 0:08:30]} 9. Ne5 {[%emt 0:03:30]} Nc6 {[%emt 0:03:30]} 10. Bb5 {[%emt 0:04:30]} Bd7 {[%emt 0:00:30]} 11. Nxd7 {[%emt 0:02:30]} Qxd7 {[%emt 0:00:30]} 12. Re1 {[%emt 0:12:30]} O-O {[%emt 0:00:30]} 13. c3 {[%emt 0:00:30]} Rfe8 {[%emt 0:00:30]} 14. h3 {[%emt 0:10:30]} a6 {[%emt 0:00:30]} 15. Bd3 {[%emt 0:00:30]} Bd6 {[%emt 0:00:30]} 16. Be3 {[%emt 0:00:30]} Ne4 {[%emt 0:05:30]} 17. Nd2 {[%emt 0:01:30]} f5 {[%emt 0:02:30]} 18. Nxe4 {[%emt 0:09:30]} dxe4 {[%emt 0:03:30]} 19. Bc4+ {[%emt 0:01:30]} Kh8 {[%emt 0:00:00]} 20. Qd2 {[%emt 0:00:00]} Rf8 {[%emt 0:05:00]} 21. Bf4 {[%emt 0:00:00]} Bxf4 {[%emt 0:00:30]} 22. Qxf4 {[%emt 0:00:30]} b5 {[%emt 0:01:30]} 23. Bf1 {[%emt 0:07:30]} Ne7 {[%emt 0:01:30]} 24. Rad1 {[%emt 0:03:47]} Ng6 {[%emt 0:02:30]} 25. Qd2 {[%emt 0:00:58]} Rf6 {[%emt 0:00:30]} 26. c4 {[%emt 0:01:59]} c6 {[%emt 0:05:30]} 27. Rc1 {[%emt 0:04:03]} Rd8 {[%emt 0:00:30]} 28. Red1 {[%emt 0:00:43]} h6 {[%emt 0:03:30]} 29. cxb5 {[%emt 0:02:25]} cxb5 {[%emt 0:00:30]} 30. Rc5 {[%emt 0:02:06]} Rc6 {[%emt 0:02:30]} 31. Rxc6 {[%emt 0:01:00]} Qxc6 {[%emt 0:02:30]} 32. Qa5 {[%emt 0:00:24]} Rd6 {[%emt 0:03:30]} 33. Qc3 {[%emt 0:04:09]} Qd5 {[%emt 0:00:30]} 34. a4 {[%emt 0:02:01]} bxa4 {[%emt 0:11:30]} 35. Qc8+ {[%emt 0:00:28]} Kh7 {[%emt 0:00:30]} 36. Bc4 {[%emt 0:00:05]} Rc6 {[%emt 0:01:30]} 37. Bxd5 {[%emt 0:00:37]} Rxc8 {[%emt 0:00:30]} 38. Be6 {[%emt 0:00:00]} Rc2 {[%emt 0:00:30]} 39. Bxf5 {[%emt 0:00:10]} Rxb2 {[%emt 0:00:30]} 40. Bxe4 {[%emt 0:00:00]} a3 {[%emt 0:02:30]} 41. Ra1 {[%emt 0:00:00]} a2 {[%emt 0:12:30]} 42. g3 {[%emt 0:02:37]} h5 {[%emt 0:00:30]} 43. Kg2 {[%emt 0:00:17]} Kh6 {[%emt 0:00:00]} 44. Bd5 {[%emt 0:00:15]} Rd2 {[%emt 0:01:00]} 45. Rxa2 {[%emt 0:00:38]} Rxa2 {[%emt 0:03:07]} 46. Bxa2 {[%emt 0:00:08]} Kg5 {[%emt 0:00:20]} 47. h4+ {[%emt 0:01:59]} Kf6 {[%emt 0:00:12]} 48. Kf3 {[%emt 0:00:30]} Ne7 {[%emt 0:04:56]} 49. Ke4 {[%emt 0:02:03]} Nc8 {[%emt 0:01:27]} 50. Kd5 {[%emt 0:00:55]} Ke7 {[%emt 0:00:35]} 51. Kc6 {[%emt 0:00:44]} a5 {[%emt 0:00:30]} 52. Kb5 {[%emt 0:00:30]} Kf6 {[%emt 0:00:30]} 53. Kxa5 {[%emt 0:00:30]} Kf5 {[%emt 0:01:29]} 54. f3 {[%emt 0:00:19]} g5 {[%emt 0:00:57]} 55. Bb1+ {[%emt 0:00:12]} Kf6 {[%emt 0:00:14]} 56. Kb4 {[%emt 0:00:30]} gxh4 {[%emt 0:02:00]} 57. gxh4 {[%emt 0:00:02]} Ne7 {[%emt 0:00:00]} 58. Kc5 {[%emt 0:00:12]} Ke6 {[%emt 0:00:19]} 59. d5+ {[%emt 0:01:49]} Nxd5 {[%emt 0:00:24]} 60. Ba2 {[%emt 0:00:02]} Kf5 {[%emt 0:00:30]} 61. Bxd5 {[%emt 0:00:07]} Kf4 {[%emt 0:00:00]} 62. Kd4 {[%emt 0:00:38]} Kg3 {[%emt 0:00:22]} 63. Ke5 {[%emt 0:00:12]} Kxh4 {[%emt 0:00:06]} 64. f4 {[%emt 0:00:00]} Kg4 {[%emt 0:00:14]} 65. f5 {[%emt 0:00:04]} Kg5 {[%emt 0:00:00]} 66. Ke6 {[%emt 0:00:00]} h4 {[%emt 0:00:57]} 67. f6 {[%emt 0:00:00]} h3 {[%emt 0:00:10]} 68. f7 {[%emt 0:00:24]} h2 {[%emt 0:00:00]} 69. f8=Q {[%emt 0:00:24]} h1=Q {[%emt 0:00:00]} 70. Bxh1 {[%emt 0:00:07]} Kg4 {[%emt 0:00:00]} 71. Bb7 {[%emt 0:00:17]} Kg3 {[%emt 0:00:31]} 72. Qf3+ {[%emt 0:00:15]} Kh4 {[%emt 0:00:02]} 73. Qg2 {[%emt 0:00:06]} Kh5 {[%emt 0:00:12]} 74. Kf5 {[%emt 0:00:14]} Kh6 {[%emt 0:00:04]} 75. Qg6# {[%emt 0:00:32]} 1-0

[Event "1st Sivas Buruciye Open 2019"]
[Site "Sivas"]
[Date "2019.08.20"]
[Round "3"]
[White "Sandalakis, Angelos"]
[Black "Tofan, Ibrahim"]
[Result "1/2-1/2"]
[ECO "E04"]
[WhiteElo "2439"]
[BlackElo "2055"]
[Annotator "NA"]
[PlyCount "102"]
[EventDate "2019.08.19"]
[EventType "swiss"]
[EventCountry "TUR"]
[SourceTitle "playchess.com"]
[Source "ChessBase"]
[SourceQuality "1"]
[TimeControl "5400+30"]

1. d4 Nf6 2. c4 e6 3. g3 d5 4. Bg2 dxc4 5. Nf3 c5 6. O-O Nc6 7. dxc5 Qxd1 8. Rxd1 Bxc5 9. Nbd2 {[%emt 0:02:30]} O-O 10. Nxc4 Ng4 {[%emt 0:12:00]} 11. e3 e5 12. Rd5 Be7 13. Nfxe5 Ngxe5 14. Nxe5 Nxe5 15. Rxe5 Rd8 16. Bd2 Bf6 17. Rd5 Be6 18. Rxd8+ Rxd8 19. Bc3 Bxc3 20. bxc3 b6 21. a4 Rd2 22. Be4 f5 23. Bb7 Rc2 24. Ra3 g5 25. a5 g4 26. Kg2 b5 27. e4 fxe4 28. Bxe4 Rc1 29. f4 Re1 30. Bd3 a6 31. Kf2 Rh1 32. Ke3 Rxh2 33. Be4 h5 34. f5 Bc4 {[%emt 1:31:03]} 35. Ra1 {[%emt 1:27:44]} Kg7 {[%emt 0:01:31]} 36. Bb7 {[%emt 0:01:40]} Kf6 {[%emt 0:00:20]} 37. Kd4 {[%emt 0:00:11]} h4 {[%emt 0:02:27]} 38. gxh4 Rxh4 39. Bxa6 {[%emt 0:01:31]} g3+ {[%emt 0:00:57]} 40. Ke3 g2 {[%emt 0:01:09]} 41. Rg1 Rh3+ {[%emt 0:00:19]} 42. Kd4 Bf1 43. Bb7 Rd3+ 44. Kc5 Rxc3+ 45. Kb6 b4 46. Bxg2 Bd3 47. a6 Bxa6 48. Kxa6 Rg3 49. Kb5 b3 50. Kc4 b2 51. Rb1 Rxg2 1/2-1/2

[Event "1st Sivas Buruciye Open 2019"]
[Site "Sivas"]
[Date "2019.08.20"]
[Round "3"]
[White "Saraci, Nderim"]
[Black "Bayramov, Elvin"]
[Result "1/2-1/2"]
[ECO "D77"]
[WhiteElo "2398"]
[BlackElo "2198"]
[Annotator "NA"]
[PlyCount "157"]
[EventDate "2019.08.19"]
[EventType "swiss"]
[EventCountry "TUR"]
[SourceTitle "playchess.com"]
[Source "ChessBase"]
[SourceQuality "1"]
[TimeControl "5400+30"]

1. Nf3 {[%emt 0:00:30]} Nf6 {[%emt 0:01:30]} 2. g3 {[%emt 0:00:30]} g6 {[%emt 0:00:30]} 3. Bg2 {[%emt 0:00:30]} Bg7 {[%emt 0:00:30]} 4. O-O {[%emt 0:00:30]} O-O {[%emt 0:00:00]} 5. d4 {[%emt 0:00:00]} d5 {[%emt 0:01:00]} 6. c4 {[%emt 0:01:00]} dxc4 {[%emt 0:02:30]} 7. Na3 {[%emt 0:06:30]} Be6 {[%emt 0:02:30]} 8. Ng5 {[%emt 0:01:30]} Bd5 {[%emt 0:00:30]} 9. e4 {[%emt 0:02:30]} h6 {[%emt 0:01:30]} 10. exd5 {[%emt 0:01:30]} hxg5 {[%emt 0:00:30]} 11. d6 {[%emt 0:06:30]} Nc6 {[%emt 0:01:30]} 12. dxe7 {[%emt 0:10:30]} Qxe7 {[%emt 0:04:30]} 13. Nxc4 {[%emt 0:04:30]} Rad8 {[%emt 0:05:30]} 14. Bxc6 {[%emt 0:03:30]} bxc6 {[%emt 0:00:00]} 15. Bxg5 {[%emt 0:00:30]} Qe6 {[%emt 0:00:00]} 16. Rc1 {[%emt 0:18:30]} Rd5 {[%emt 0:01:30]} 17. Re1 {[%emt 0:08:30]} Ne4 {[%emt 0:15:30]} 18. Qc2 {[%emt 0:02:30]} Rxd4 {[%emt 0:02:30]} 19. Be3 {[%emt 0:02:30]} Qd5 {[%emt 0:08:30]} 20. h4 {[%emt 0:01:30]} Rd3 {[%emt 0:04:30]} 21. Rcd1 {[%emt 0:07:24]} Rxd1 {[%emt 0:00:30]} 22. Rxd1 {[%emt 0:00:00]} Qf5 {[%emt 0:00:00]} 23. Qe2 {[%emt 0:02:10]} Re8 {[%emt 0:01:00]} 24. Kg2 {[%emt 0:01:04]} Qb5 {[%emt 0:06:30]} 25. Qc2 {[%emt 0:00:28]} c5 {[%emt 0:01:30]} 26. Qd3 {[%emt 0:03:25]} Qa6 {[%emt 0:03:30]} 27. a3 {[%emt 0:01:51]} Bf6 {[%emt 0:01:30]} 28. Qb3 {[%emt 0:00:52]} Qc6 {[%emt 0:00:30]} 29. Na5 {[%emt 0:00:55]} Qa8 {[%emt 0:01:30]} 30. Qb7 {[%emt 0:04:06]} Bxb2 {[%emt 0:00:30]} 31. Qxa8 {[%emt 0:00:36]} Rxa8 {[%emt 0:00:30]} 32. Nc4 {[%emt 0:01:38]} Bg7 {[%emt 0:04:30]} 33. Rd5 {[%emt 0:01:01]} Bf8 {[%emt 0:01:30]} 34. Rd7 {[%emt 0:01:12]} Nd6 {[%emt 0:02:30]} 35. Ne5 {[%emt 0:01:30]} Re8 {[%emt 0:00:30]} 36. Nc6 {[%emt 0:00:00]} Nc4 {[%emt 0:00:30]} 37. Bf4 {[%emt 0:01:07]} a6 {[%emt 0:01:30]} 38. Rxc7 {[%emt 0:02:03]} Nxa3 {[%emt 0:00:00]} 39. Na5 {[%emt 0:00:38]} Ra8 {[%emt 0:02:00]} 40. Be5 {[%emt 0:01:53]} Nb5 {[%emt 0:00:30]} 41. Rd7 {[%emt 0:00:32]} Re8 {[%emt 0:00:30]} 42. f4 {[%emt 0:00:46]} Bg7 {[%emt 0:00:00]} 43. Bxg7 {[%emt 0:00:34]} Kxg7 {[%emt 0:00:00]} 44. Nc4 {[%emt 0:00:00]} Rc8 {[%emt 0:01:30]} 45. Kf2 {[%emt 0:00:13]} Rc7 {[%emt 0:00:30]} 46. Rd8 {[%emt 0:00:02]} Re7 {[%emt 0:00:30]} 47. Rc8 {[%emt 0:00:35]} Nd4 {[%emt 0:00:30]} 48. Ne5 {[%emt 0:00:23]} f6 {[%emt 0:00:30]} 49. Nd3 {[%emt 0:00:37]} Re2+ {[%emt 0:00:30]} 50. Kf1 {[%emt 0:00:00]} Rd2 {[%emt 0:00:30]} 51. Nxc5 {[%emt 0:00:00]} Nf5 {[%emt 0:00:30]} 52. Rc7+ {[%emt 0:00:28]} Kf8 {[%emt 0:02:30]} 53. Ke1 {[%emt 0:01:29]} Ra2 {[%emt 0:00:30]} 54. Rc6 {[%emt 0:01:30]} a5 {[%emt 0:01:30]} 55. Rxf6+ {[%emt 0:00:43]} Kg7 {[%emt 0:00:30]} 56. Ra6 {[%emt 0:00:00]} Nxg3 {[%emt 0:00:00]} 57. Ne6+ {[%emt 0:00:16]} Kg8 {[%emt 0:01:00]} 58. Nd4 {[%emt 0:00:38]} Kh7 {[%emt 0:00:30]} 59. Nc6 {[%emt 0:01:27]} a4 {[%emt 0:00:30]} 60. Nb4 {[%emt 0:00:27]} Ra1+ {[%emt 0:00:30]} 61. Kd2 {[%emt 0:00:18]} Kh6 {[%emt 0:01:30]} 62. Ra5 {[%emt 0:00:19]} Nf5 {[%emt 0:00:30]} 63. Nc2 {[%emt 0:00:05]} Rh1 {[%emt 0:01:16]} 64. Rxa4 {[%emt 0:00:30]} Rh2+ {[%emt 0:01:36]} 65. Kd3 {[%emt 0:00:00]} Rxh4 {[%emt 0:00:10]} 66. Ne1 {[%emt 0:00:51]} Rh3+ {[%emt 0:00:22]} 67. Ke2 {[%emt 0:00:06]} Rh2+ {[%emt 0:02:11]} 68. Kf3 {[%emt 0:00:13]} Rd2 {[%emt 0:00:36]} 69. Re4 {[%emt 0:00:50]} Kh5 {[%emt 0:00:29]} 70. Re8 {[%emt 0:00:19]} Nd4+ {[%emt 0:01:02]} 71. Kg3 {[%emt 0:00:09]} Kh6 {[%emt 0:00:12]} 72. Rh8+ {[%emt 0:01:24]} Kg7 {[%emt 0:00:04]} 73. Ra8 {[%emt 0:00:03]} Rd1 {[%emt 0:00:41]} 74. Kf2 {[%emt 0:00:46]} Ne6 {[%emt 0:00:06]} 75. Ra4 {[%emt 0:00:00]} Nc5 {[%emt 0:00:22]} 76. Rc4 {[%emt 0:00:07]} Ne6 {[%emt 0:01:31]} 77. Nf3 {[%emt 0:00:05]} Kf6 {[%emt 0:00:00]} 78. Rc6 {[%emt 0:00:32]} Ke7 {[%emt 0:01:15]} 79. Ne5 {[%emt 0:00:06]} 1/2-1/2

[Event "1st Sivas Buruciye Open 2019"]
[Site "Sivas"]
[Date "2019.08.20"]
[Round "3"]
[White "Sevdimaliyev, Urfan"]
[Black "Rahimli, Ilkin"]
[Result "1/2-1/2"]
[ECO "B90"]
[WhiteElo "2348"]
[BlackElo "1992"]
[Annotator "NA"]
[PlyCount "53"]
[EventDate "2019.08.19"]
[EventType "swiss"]
[EventCountry "TUR"]
[SourceTitle "playchess.com"]
[Source "ChessBase"]
[SourceQuality "1"]
[TimeControl "5400+30"]

1. e4 {[%emt 0:03:30]} c5 {[%emt 0:00:30]} 2. Nf3 {[%emt 0:00:30]} d6 {[%emt 0:00:00]} 3. d4 {[%emt 0:00:30]} cxd4 {[%emt 0:00:00]} 4. Nxd4 {[%emt 0:00:30]} Nf6 {[%emt 0:00:30]} 5. Nc3 {[%emt 0:00:00]} a6 {[%emt 0:00:00]} 6. Be3 {[%emt 0:01:00]} e5 {[%emt 0:00:00]} 7. Nb3 {[%emt 0:00:00]} Be7 {[%emt 0:00:30]} 8. f4 {[%emt 0:03:00]} Ng4 {[%emt 0:03:30]} 9. Qe2 {[%emt 0:10:30]} Nxe3 {[%emt 0:06:30]} 10. Qxe3 {[%emt 0:00:30]} exf4 {[%emt 0:01:30]} 11. Qxf4 {[%emt 0:00:00]} Be6 {[%emt 0:01:30]} 12. h4 {[%emt 0:03:00]} Bf6 {[%emt 0:05:30]} 13. O-O-O {[%emt 0:04:30]} Be5 {[%emt 0:01:30]} 14. Qf3 {[%emt 0:02:30]} Nd7 {[%emt 0:08:30]} 15. Nd4 {[%emt 0:09:30]} Qf6 {[%emt 0:09:30]} 16. Nf5 {[%emt 0:12:30]} Bxf5 {[%emt 0:04:30]} 17. exf5 {[%emt 0:00:30]} Bxc3 {[%emt 0:03:30]} 18. Qxc3 {[%emt 0:00:30]} Qxc3 {[%emt 0:09:30]} 19. bxc3 {[%emt 0:00:30]} Ke7 {[%emt 0:00:00]} 20. Rh3 {[%emt 0:06:30]} Ne5 {[%emt 0:01:00]} 21. c4 {[%emt 0:09:30]} Rac8 {[%emt 0:01:30]} 22. Rb3 {[%emt 0:00:30]} Rc7 {[%emt 0:00:30]} 23. Rb6 {[%emt 0:01:30]} Rd8 {[%emt 0:01:30]} 24. Rd4 {[%emt 0:02:30]} Rdd7 {[%emt 0:00:30]} 25. g4 {[%emt 0:01:30]} Rc5 {[%emt 0:01:30]} 26. g5 {[%emt 0:05:30]} f6 {[%emt 0:03:30]} 27. gxf6+ {[%emt 0:03:39]} 1/2-1/2